[Event "Titled Tuesday Blitz February 21 Early 2023"]
[White "QuiesPrecatio"]
[Black "Zaichenko, Daria"]
[BlackFideId "4197453"]
[WhiteElo "2417"]
[BlackElo "2104"]
[Result "1-0"]
[Round "09"]
[TimeControl "180+2"]
[Date "2023.02.21"]
[WhiteClock "0:01:31"]
[BlackClock "0:00:49"]

1. Nf3 {[%clk 0:02:47]}  Nf6 {[%clk 0:02:58]} 2. c4 {[%clk 0:02:46]}  e6 {[%clk 0:02:58]} 3. d4 {[%clk 0:02:46]}  d5 {[%clk 0:02:58]} 4. Nc3 {[%clk 0:02:44]}  Be7 {[%clk 0:02:56]} 5. cxd5 {[%clk 0:02:42]}  exd5 {[%clk 0:02:55]} 6. Bg5 {[%clk 0:02:42]}  c6 {[%clk 0:02:47]} 7. Qc2 {[%clk 0:02:41]}  O-O {[%clk 0:02:47]} 8. e3 {[%clk 0:02:41]}  Ne4 {[%clk 0:02:45]} 9. Bxe7 {[%clk 0:02:37]}  Qxe7 {[%clk 0:02:44]} 10. Bd3 {[%clk 0:02:37]}  f5 {[%clk 0:02:42]} 11. O-O {[%clk 0:02:35]}  Nd7 {[%clk 0:02:42]} 12. Rab1 {[%clk 0:02:33]}  a5 {[%clk 0:02:41]} 13. a3 {[%clk 0:02:32]}  Ndf6 {[%clk 0:02:36]} 14. Ne5 {[%clk 0:02:32]}  Nxc3 {[%clk 0:02:33]} 15. Qxc3 {[%clk 0:02:30]}  Ne4 {[%clk 0:02:32]} 16. Bxe4 {[%clk 0:02:29]}  fxe4 {[%clk 0:02:27]} 17. f4 {[%clk 0:02:25]}  exf3 {[%clk 0:02:24]} 18. Rxf3 {[%clk 0:02:20]}  Bf5 {[%clk 0:02:19]} 19. Rbf1 {[%clk 0:02:15]}  Be4 {[%clk 0:02:19]} 20. Rxf8+ {[%clk 0:02:15]}  Rxf8 {[%clk 0:02:19]} 21. Rxf8+ {[%clk 0:02:14]}  Kxf8 {[%clk 0:02:11]} 22. Qxa5 {[%clk 0:02:10]}  g6 {[%clk 0:02:07]} 23. Qe1 {[%clk 0:02:05]}  Kg7 {[%clk 0:02:05]} 24. Qf2 {[%clk 0:02:05]}  Qg5 {[%clk 0:01:58]} 25. h4 {[%clk 0:02:04]}  Qe7 {[%clk 0:01:40]} 26. g4 {[%clk 0:01:54]}  c5 {[%clk 0:01:33]} 27. g5 {[%clk 0:01:48]}  cxd4 {[%clk 0:01:32]} 28. exd4 {[%clk 0:01:49]}  Bf5 {[%clk 0:01:27]} 29. Qf3 {[%clk 0:01:45]}  Be4 {[%clk 0:01:23]} 30. Qf4 {[%clk 0:01:45]}  Bf5 {[%clk 0:01:23]} 31. Kf2 {[%clk 0:01:43]}  Qc7 {[%clk 0:01:19]} 32. Qd2 {[%clk 0:01:41]}  Qb6 {[%clk 0:01:16]} 33. Qc3 {[%clk 0:01:38]}  Be4 {[%clk 0:01:01]} 34. b4 {[%clk 0:01:36]}  Qd8 {[%clk 0:00:58]} 35. Qc5 {[%clk 0:01:33]}  h6 {[%clk 0:00:49]} 36. gxh6+ {[%clk 0:01:31]}  Kxh6 {[%clk 0:00:49]} 37. Nf7+ {[%clk 0:01:31]} 1-0


[Site "https://www.chess.com"]

[Event "Titled Tuesday Blitz February 21 Early 2023"]
[White "Mendez Machado, Andre"]
[Black "Florescu, Codrut-Constantin"]
[WhiteFideId "6603793"]
[BlackFideId "1202200"]
[WhiteElo "1974"]
[BlackElo "2259"]
[Result "0-1"]
[Round "09"]
[TimeControl "180+2"]
[Date "2023.02.21"]
[WhiteClock "0:00:08"]
[BlackClock "0:01:17"]

1. e4 {[%clk 0:03:00]}  c5 {[%clk 0:02:55]} 2. Nc3 {[%clk 0:02:59]}  e6 {[%clk 0:02:54]} 3. d4 {[%clk 0:02:59]}  cxd4 {[%clk 0:02:53]} 4. Qxd4 {[%clk 0:02:59]}  Nc6 {[%clk 0:02:53]} 5. Qe3 {[%clk 0:03:00]}  a6 {[%clk 0:02:53]} 6. Qg3 {[%clk 0:02:59]}  b5 {[%clk 0:02:52]} 7. Bd3 {[%clk 0:02:49]}  Nf6 {[%clk 0:02:51]} 8. Nf3 {[%clk 0:02:48]}  d6 {[%clk 0:02:36]} 9. O-O {[%clk 0:02:33]}  Bb7 {[%clk 0:02:32]} 10. a3 {[%clk 0:02:28]}  Qc7 {[%clk 0:02:31]} 11. Re1 {[%clk 0:01:28]}  h6 {[%clk 0:02:30]} 12. b4 {[%clk 0:01:12]}  Ne5 {[%clk 0:02:24]} 13. Nxe5 {[%clk 0:00:49]}  dxe5 {[%clk 0:02:23]} 14. Bb2 {[%clk 0:00:40]}  Nh5 {[%clk 0:02:13]} 15. Qe3 {[%clk 0:00:32]}  Nf4 {[%clk 0:02:14]} 16. g3 {[%clk 0:00:28]}  Nxd3 {[%clk 0:02:11]} 17. cxd3 {[%clk 0:00:29]}  Bd6 {[%clk 0:01:57]} 18. Rac1 {[%clk 0:00:30]}  Qe7 {[%clk 0:01:55]} 19. Ne2 {[%clk 0:00:26]}  O-O {[%clk 0:01:54]} 20. f4 {[%clk 0:00:26]}  exf4 {[%clk 0:01:52]} 21. Nxf4 {[%clk 0:00:24]}  Bb8 {[%clk 0:01:48]} 22. Bd4 {[%clk 0:00:20]}  e5 {[%clk 0:01:47]} 23. Bc5 {[%clk 0:00:21]}  exf4 {[%clk 0:01:46]} 24. Bxe7 {[%clk 0:00:21]}  fxe3 {[%clk 0:01:45]} 25. Bxf8 {[%clk 0:00:21]}  Kxf8 {[%clk 0:01:45]} 26. d4 {[%clk 0:00:18]}  Bd6 {[%clk 0:01:24]} 27. Rxe3 {[%clk 0:00:17]}  a5 {[%clk 0:01:24]} 28. e5 {[%clk 0:00:17]}  Be7 {[%clk 0:01:24]} 29. Rc7 {[%clk 0:00:17]}  Bd5 {[%clk 0:01:23]} 30. Rd7 {[%clk 0:00:16]}  Bc4 {[%clk 0:01:22]} 31. d5 {[%clk 0:00:16]}  axb4 {[%clk 0:01:21]} 32. d6 {[%clk 0:00:16]}  Bg5 {[%clk 0:01:20]} 33. Re1 {[%clk 0:00:11]}  bxa3 {[%clk 0:01:20]} 34. Rb7 {[%clk 0:00:09]}  a2 {[%clk 0:01:20]} 35. Ra1 {[%clk 0:00:08]}  Be3+ {[%clk 0:01:17]} 36. Kg2 {[%clk 0:00:08]}  Bd5+ {[%clk 0:01:16]} 37. Kh3 {[%clk 0:00:08]}  Bxb7 {[%clk 0:01:17]} 0-1


[Site "https://www.chess.com"]

[Event "Titled Tuesday Blitz February 21 Early 2023"]
[White "Hirneise, Jens"]
[Black "Lorenzo De La Riva, Lazaro"]
[WhiteFideId "24614734"]
[BlackFideId "2268809"]
[WhiteElo "2277"]
[BlackElo "2404"]
[Result "1-0"]
[Round "09"]
[TimeControl "180+2"]
[Date "2023.02.21"]
[WhiteClock "0:00:58"]
[BlackClock "0:00:59"]

1. c4 {[%clk 0:02:56]}  Nf6 {[%clk 0:03:00]} 2. Nc3 {[%clk 0:02:55]}  b6 {[%clk 0:03:01]} 3. d4 {[%clk 0:02:55]}  Bb7 {[%clk 0:03:01]} 4. Nf3 {[%clk 0:02:54]}  g6 {[%clk 0:03:02]} 5. g3 {[%clk 0:02:54]}  Bg7 {[%clk 0:03:02]} 6. Bg2 {[%clk 0:02:54]}  O-O {[%clk 0:03:03]} 7. O-O {[%clk 0:02:54]}  d5 {[%clk 0:03:03]} 8. Ne5 {[%clk 0:02:53]}  e6 {[%clk 0:03:02]} 9. b3 {[%clk 0:02:47]}  Nbd7 {[%clk 0:03:01]} 10. Nxd7 {[%clk 0:02:35]}  Qxd7 {[%clk 0:03:02]} 11. Bb2 {[%clk 0:02:32]}  Rad8 {[%clk 0:02:59]} 12. Re1 {[%clk 0:02:28]}  Ba6 {[%clk 0:02:56]} 13. cxd5 {[%clk 0:02:25]}  exd5 {[%clk 0:02:57]} 14. Rc1 {[%clk 0:02:22]}  Rfe8 {[%clk 0:02:56]} 15. e3 {[%clk 0:02:22]}  c6 {[%clk 0:02:55]} 16. Bf1 {[%clk 0:02:22]}  Bxf1 {[%clk 0:02:54]} 17. Rxf1 {[%clk 0:02:22]}  Ne4 {[%clk 0:02:53]} 18. Qc2 {[%clk 0:02:20]}  Rc8 {[%clk 0:02:51]} 19. Nxe4 {[%clk 0:02:16]}  Rxe4 {[%clk 0:02:52]} 20. b4 {[%clk 0:02:14]}  b5 {[%clk 0:02:51]} 21. a3 {[%clk 0:02:10]}  h5 {[%clk 0:02:49]} 22. Qe2 {[%clk 0:02:08]}  h4 {[%clk 0:02:48]} 23. Qf3 {[%clk 0:02:09]}  f5 {[%clk 0:02:46]} 24. Rc2 {[%clk 0:02:08]}  Rce8 {[%clk 0:02:44]} 25. Rfc1 {[%clk 0:02:07]}  R8e6 {[%clk 0:02:44]} 26. Bc3 {[%clk 0:01:59]}  Bh6 {[%clk 0:02:42]} 27. Bd2 {[%clk 0:01:59]}  Kg7 {[%clk 0:02:29]} 28. a4 {[%clk 0:01:47]}  a6 {[%clk 0:02:27]} 29. axb5 {[%clk 0:01:48]}  axb5 {[%clk 0:02:27]} 30. Ra1 {[%clk 0:01:47]}  Re7 {[%clk 0:02:26]} 31. Rca2 {[%clk 0:01:47]}  Qe6 {[%clk 0:02:24]} 32. Ra6 {[%clk 0:01:45]}  g5 {[%clk 0:02:23]} 33. Rc1 {[%clk 0:01:42]}  g4 {[%clk 0:02:16]} 34. Qe2 {[%clk 0:01:35]}  Rc7 {[%clk 0:02:12]} 35. Qxb5 {[%clk 0:01:25]}  cxb5 {[%clk 0:01:35]} 36. Rxc7+ {[%clk 0:01:23]}  Kg6 {[%clk 0:01:35]} 37. Rcc6 {[%clk 0:01:19]}  Qxc6 {[%clk 0:01:33]} 38. Rxc6+ {[%clk 0:01:18]}  Kh7 {[%clk 0:01:29]} 39. Rc5 {[%clk 0:01:15]}  h3 {[%clk 0:01:27]} 40. Rxd5 {[%clk 0:01:13]}  Kg6 {[%clk 0:01:27]} 41. Rxb5 {[%clk 0:01:12]}  Bf8 {[%clk 0:01:23]} 42. Kf1 {[%clk 0:01:12]}  Re6 {[%clk 0:01:23]} 43. Ke2 {[%clk 0:01:10]}  Rc6 {[%clk 0:01:23]} 44. Kd3 {[%clk 0:01:09]}  Ra6 {[%clk 0:01:22]} 45. Ra5 {[%clk 0:01:09]}  Rc6 {[%clk 0:01:22]} 46. b5 {[%clk 0:01:09]}  Rc8 {[%clk 0:01:21]} 47. Ra6+ {[%clk 0:01:09]}  Kf7 {[%clk 0:01:20]} 48. Bc3 {[%clk 0:01:08]}  Be7 {[%clk 0:01:16]} 49. Ra7 {[%clk 0:01:08]}  Ke6 {[%clk 0:01:16]} 50. d5+ {[%clk 0:01:08]}  Kd6 {[%clk 0:01:11]} 51. Bb4+ {[%clk 0:01:08]}  Kxd5 {[%clk 0:01:11]} 52. Rd7+ {[%clk 0:01:05]}  Ke6 {[%clk 0:01:08]} 53. Rxe7+ {[%clk 0:01:05]}  Kf6 {[%clk 0:01:09]} 54. Rd7 {[%clk 0:01:03]}  Rc1 {[%clk 0:01:09]} 55. b6 {[%clk 0:01:03]}  Rd1+ {[%clk 0:01:08]} 56. Bd2 {[%clk 0:01:02]}  Rb1 {[%clk 0:01:06]} 57. b7 {[%clk 0:01:01]}  Ke6 {[%clk 0:01:06]} 58. Rh7 {[%clk 0:01:00]}  Kd5 {[%clk 0:01:03]} 59. Bc3 {[%clk 0:01:00]}  Rb6 {[%clk 0:00:58]} 60. Bd4 {[%clk 0:00:59]}  Rb3+ {[%clk 0:00:58]} 61. Kc2 {[%clk 0:00:59]}  Rb5 {[%clk 0:00:59]} 62. Ba7 {[%clk 0:00:58]} 1-0


[Site "https://www.chess.com"]

[Event "Titled Tuesday Blitz February 21 Early 2023"]
[White "Uzcategui Rodriguez, Alejandro"]
[Black "Berkes, Ferenc"]
[WhiteFideId "3903400"]
[BlackFideId "718572"]
[WhiteElo "2255"]
[BlackElo "2621"]
[Result "1-0"]
[Round "09"]
[TimeControl "180+2"]
[Date "2023.02.21"]
[WhiteClock "0:01:01"]
[BlackClock "0:01:11"]

1. e4 {[%clk 0:02:38]}  e6 {[%clk 0:02:56]} 2. d4 {[%clk 0:02:36]}  d5 {[%clk 0:02:55]} 3. Nd2 {[%clk 0:02:36]}  c5 {[%clk 0:02:50]} 4. Ngf3 {[%clk 0:02:31]}  cxd4 {[%clk 0:02:45]} 5. Nxd4 {[%clk 0:02:26]}  Nc6 {[%clk 0:02:45]} 6. Bb5 {[%clk 0:02:24]}  Bd7 {[%clk 0:02:44]} 7. N4f3 {[%clk 0:02:20]}  dxe4 {[%clk 0:02:38]} 8. Nxe4 {[%clk 0:02:21]}  Qa5+ {[%clk 0:02:37]} 9. Nc3 {[%clk 0:02:18]}  Bb4 {[%clk 0:02:37]} 10. Bxc6 {[%clk 0:02:16]}  Bxc3+ {[%clk 0:02:35]} 11. bxc3 {[%clk 0:02:17]}  Qxc3+ {[%clk 0:02:31]} 12. Bd2 {[%clk 0:02:17]}  Qxc6 {[%clk 0:02:30]} 13. O-O {[%clk 0:02:10]}  f6 {[%clk 0:02:29]} 14. Nd4 {[%clk 0:02:00]}  Qd5 {[%clk 0:02:28]} 15. Qg4 {[%clk 0:01:54]}  Ne7 {[%clk 0:02:20]} 16. c4 {[%clk 0:01:41]}  e5 {[%clk 0:02:07]} 17. Qxg7 {[%clk 0:01:33]}  Qg8 {[%clk 0:02:06]} 18. Qxf6 {[%clk 0:01:28]}  exd4 {[%clk 0:02:01]} 19. Rfe1 {[%clk 0:01:27]}  O-O-O {[%clk 0:02:01]} 20. Rxe7 {[%clk 0:01:23]}  Bc6 {[%clk 0:01:58]} 21. g3 {[%clk 0:01:22]}  Qxc4 {[%clk 0:01:51]} 22. Qe5 {[%clk 0:01:08]}  Ba4 {[%clk 0:01:42]} 23. Rc1 {[%clk 0:01:01]}  Bc2 {[%clk 0:01:41]} 24. Bf4 {[%clk 0:01:01]}  Rd7 {[%clk 0:01:11]} 1-0


[Site "https://www.chess.com"]

[Event "Titled Tuesday Blitz February 21 Early 2023"]
[White "mohsengabr2002"]
[Black "Yurasova, Daria"]
[BlackFideId "34146919"]
[WhiteElo "2324"]
[BlackElo "2095"]
[Result "0-1"]
[Round "09"]
[TimeControl "180+2"]
[Date "2023.02.21"]
[WhiteClock "0:00:12"]
[BlackClock "0:00:11"]

1. b3 {[%clk 0:02:33]}  b6 {[%clk 0:02:59]} 2. e3 {[%clk 0:02:29]}  Bb7 {[%clk 0:02:59]} 3. Bb2 {[%clk 0:02:29]}  e6 {[%clk 0:02:59]} 4. Nf3 {[%clk 0:02:30]}  Nf6 {[%clk 0:02:59]} 5. c4 {[%clk 0:02:26]}  c5 {[%clk 0:02:59]} 6. d3 {[%clk 0:02:25]}  Be7 {[%clk 0:03:00]} 7. Nbd2 {[%clk 0:02:25]}  O-O {[%clk 0:03:00]} 8. Be2 {[%clk 0:02:26]}  d6 {[%clk 0:03:01]} 9. Qc2 {[%clk 0:02:25]}  Nbd7 {[%clk 0:03:02]} 10. O-O {[%clk 0:02:22]}  a6 {[%clk 0:03:02]} 11. h3 {[%clk 0:02:22]}  Re8 {[%clk 0:03:02]} 12. a3 {[%clk 0:02:23]}  Rc8 {[%clk 0:03:02]} 13. Rfe1 {[%clk 0:02:20]}  Qc7 {[%clk 0:03:02]} 14. Rad1 {[%clk 0:02:18]}  Bf8 {[%clk 0:03:02]} 15. Qb1 {[%clk 0:02:17]}  Qb8 {[%clk 0:03:03]} 16. d4 {[%clk 0:02:17]}  cxd4 {[%clk 0:03:03]} 17. exd4 {[%clk 0:02:16]}  d5 {[%clk 0:03:02]} 18. Rc1 {[%clk 0:02:12]}  dxc4 {[%clk 0:02:54]} 19. Nxc4 {[%clk 0:02:09]}  Nd5 {[%clk 0:02:51]} 20. b4 {[%clk 0:02:08]}  N7f6 {[%clk 0:02:51]} 21. Nce5 {[%clk 0:02:07]}  Nf4 {[%clk 0:02:48]} 22. Bf1 {[%clk 0:02:04]}  Rxc1 {[%clk 0:02:44]} 23. Qxc1 {[%clk 0:02:00]}  N4d5 {[%clk 0:02:40]} 24. Qg5 {[%clk 0:01:56]}  Be7 {[%clk 0:02:24]} 25. Qd2 {[%clk 0:01:51]}  Rc8 {[%clk 0:02:21]} 26. Bd3 {[%clk 0:01:48]}  Qd6 {[%clk 0:02:15]} 27. Ng5 {[%clk 0:01:42]}  Rf8 {[%clk 0:02:12]} 28. Rc1 {[%clk 0:01:38]}  h6 {[%clk 0:02:11]} 29. Ngf3 {[%clk 0:01:36]}  Rd8 {[%clk 0:02:05]} 30. Rc2 {[%clk 0:01:33]}  b5 {[%clk 0:01:57]} 31. Qc1 {[%clk 0:01:33]}  Bf8 {[%clk 0:01:46]} 32. Nd2 {[%clk 0:01:29]}  Nf4 {[%clk 0:01:44]} 33. Bf1 {[%clk 0:01:27]}  Nd7 {[%clk 0:01:20]} 34. Ndc4 {[%clk 0:01:00]}  Nxh3+ {[%clk 0:01:15]} 35. gxh3 {[%clk 0:00:57]}  bxc4 {[%clk 0:01:15]} 36. Rxc4 {[%clk 0:00:50]}  Qd5 {[%clk 0:01:10]} 37. Nc6 {[%clk 0:00:51]}  Qf5 {[%clk 0:00:24]} 38. Bg2 {[%clk 0:00:35]}  Bxc6 {[%clk 0:00:19]} 39. Rxc6 {[%clk 0:00:34]}  Nf6 {[%clk 0:00:18]} 40. Rc7 {[%clk 0:00:28]}  Nd5 {[%clk 0:00:18]} 41. Rc8 {[%clk 0:00:27]}  Rxc8 {[%clk 0:00:14]} 42. Qxc8 {[%clk 0:00:27]}  Nf4 {[%clk 0:00:14]} 43. Bc1 {[%clk 0:00:21]}  Ne2+ {[%clk 0:00:13]} 44. Kf1 {[%clk 0:00:19]}  Nxd4 {[%clk 0:00:13]} 45. Be3 {[%clk 0:00:14]}  Qd3+ {[%clk 0:00:11]} 46. Kg1 {[%clk 0:00:13]}  Ne2+ {[%clk 0:00:11]} 47. Kh1 {[%clk 0:00:12]}  Qd1+ {[%clk 0:00:11]} 0-1


[Site "https://www.chess.com"]

[Event "Titled Tuesday Blitz February 21 Early 2023"]
[White "Sovetbekova, Nurai"]
[Black "Devaev, Alexander"]
[WhiteFideId "13801910"]
[BlackFideId "4169395"]
[WhiteElo "1764"]
[BlackElo "2325"]
[Result "1-0"]
[Round "09"]
[TimeControl "180+2"]
[Date "2023.02.21"]
[WhiteClock "0:01:00"]
[BlackClock "0:01:13"]

1. d4 {[%clk 0:03:00]}  Nf6 {[%clk 0:03:00]} 2. c4 {[%clk 0:03:00]}  e6 {[%clk 0:03:00]} 3. Nc3 {[%clk 0:02:59]}  Bb4 {[%clk 0:03:00]} 4. Bd2 {[%clk 0:02:59]}  c5 {[%clk 0:02:58]} 5. a3 {[%clk 0:02:58]}  Bxc3 {[%clk 0:02:58]} 6. Bxc3 {[%clk 0:02:58]}  Ne4 {[%clk 0:02:54]} 7. Qc2 {[%clk 0:02:54]}  Nxc3 {[%clk 0:02:53]} 8. Qxc3 {[%clk 0:02:53]}  cxd4 {[%clk 0:02:53]} 9. Qxd4 {[%clk 0:02:53]}  O-O {[%clk 0:02:53]} 10. Nf3 {[%clk 0:02:52]}  Nc6 {[%clk 0:02:54]} 11. Qd2 {[%clk 0:02:51]}  Qf6 {[%clk 0:02:43]} 12. e3 {[%clk 0:02:45]}  Rd8 {[%clk 0:02:43]} 13. Be2 {[%clk 0:02:15]}  d5 {[%clk 0:02:42]} 14. cxd5 {[%clk 0:02:14]}  Rxd5 {[%clk 0:02:36]} 15. Qc2 {[%clk 0:02:12]}  Ne5 {[%clk 0:02:16]} 16. Nxe5 {[%clk 0:02:06]}  Qxe5 {[%clk 0:02:14]} 17. O-O {[%clk 0:02:00]}  Bd7 {[%clk 0:02:14]} 18. Bf3 {[%clk 0:01:56]}  Rc8 {[%clk 0:02:03]} 19. Qb1 {[%clk 0:01:28]}  Rd2 {[%clk 0:01:54]} 20. Rd1 {[%clk 0:01:13]}  Rxb2 {[%clk 0:01:46]} 21. Qd3 {[%clk 0:01:13]}  Bb5 {[%clk 0:01:21]} 22. Qd8+ {[%clk 0:01:01]}  Be8 {[%clk 0:01:13]} 23. Qxc8 {[%clk 0:01:00]} 1-0


[Site "https://www.chess.com"]

[Event "Titled Tuesday Blitz February 21 Early 2023"]
[White "MunichMouse"]
[Black "Valle Maytin, Luis Enrique"]
[BlackFideId "3503666"]
[WhiteElo "2296"]
[BlackElo "2241"]
[Result "1-0"]
[Round "09"]
[TimeControl "180+2"]
[Date "2023.02.21"]
[WhiteClock "0:00:54"]
[BlackClock "0:00:07"]

1. d4 {[%clk 0:03:00]}  Nf6 {[%clk 0:02:57]} 2. c4 {[%clk 0:03:01]}  e6 {[%clk 0:02:35]} 3. Nf3 {[%clk 0:03:01]}  b6 {[%clk 0:02:32]} 4. g3 {[%clk 0:03:01]}  Bb7 {[%clk 0:02:33]} 5. Bg2 {[%clk 0:03:01]}  Be7 {[%clk 0:02:32]} 6. O-O {[%clk 0:03:01]}  O-O {[%clk 0:02:32]} 7. d5 {[%clk 0:03:02]}  exd5 {[%clk 0:02:29]} 8. Nh4 {[%clk 0:03:02]}  c6 {[%clk 0:02:29]} 9. cxd5 {[%clk 0:02:56]}  cxd5 {[%clk 0:02:27]} 10. Nc3 {[%clk 0:02:51]}  Re8 {[%clk 0:02:21]} 11. Nf5 {[%clk 0:02:48]}  Bf8 {[%clk 0:02:20]} 12. Nxd5 {[%clk 0:02:47]}  Nxd5 {[%clk 0:02:01]} 13. Bxd5 {[%clk 0:02:48]}  Bxd5 {[%clk 0:02:01]} 14. Qxd5 {[%clk 0:02:48]}  Nc6 {[%clk 0:02:02]} 15. e4 {[%clk 0:02:41]}  Qf6 {[%clk 0:01:57]} 16. Rb1 {[%clk 0:02:07]}  Re5 {[%clk 0:01:50]} 17. Qd3 {[%clk 0:02:03]}  d5 {[%clk 0:01:36]} 18. Bf4 {[%clk 0:01:57]}  dxe4 {[%clk 0:01:09]} 19. Bxe5 {[%clk 0:01:56]}  Nxe5 {[%clk 0:00:56]} 20. Qxe4 {[%clk 0:01:52]}  Re8 {[%clk 0:00:52]} 21. f4 {[%clk 0:01:46]}  Nf3+ {[%clk 0:00:45]} 22. Qxf3 {[%clk 0:01:45]}  Qxf5 {[%clk 0:00:46]} 23. Rbe1 {[%clk 0:01:44]}  Rc8 {[%clk 0:00:43]} 24. Re2 {[%clk 0:01:39]}  Rd8 {[%clk 0:00:37]} 25. Rfe1 {[%clk 0:01:35]}  g6 {[%clk 0:00:30]} 26. Re8 {[%clk 0:01:34]}  Rd2 {[%clk 0:00:28]} 27. R1e2 {[%clk 0:01:19]}  Qc5+ {[%clk 0:00:19]} 28. Kg2 {[%clk 0:01:18]}  Rd1 {[%clk 0:00:18]} 29. Qe3 {[%clk 0:01:13]}  Qd5+ {[%clk 0:00:11]} 30. Qe4 {[%clk 0:01:13]}  Qd6 {[%clk 0:00:10]} 31. Qe5 {[%clk 0:01:02]}  Qc6+ {[%clk 0:00:10]} 32. Kh3 {[%clk 0:01:02]}  Qd7+ {[%clk 0:00:09]} 33. f5 {[%clk 0:00:59]}  Rf1 {[%clk 0:00:09]} 34. Rxf8+ {[%clk 0:00:54]}  Kxf8 {[%clk 0:00:07]} 35. Qh8# {[%clk 0:00:54]} 1-0


[Site "https://www.chess.com"]

[Event "Titled Tuesday Blitz February 21 Early 2023"]
[White "Carrasco Miranda, Andres"]
[Black "Thiel, Thomas"]
[WhiteFideId "3405990"]
[BlackFideId "4615964"]
[WhiteElo "2240"]
[BlackElo "2234"]
[Result "1-0"]
[Round "09"]
[TimeControl "180+2"]
[Date "2023.02.21"]
[WhiteClock "0:02:00"]
[BlackClock "0:00:30"]

1. d4 {[%clk 0:03:00]}  Nf6 {[%clk 0:02:58]} 2. c4 {[%clk 0:03:01]}  g6 {[%clk 0:02:58]} 3. g3 {[%clk 0:03:01]}  c6 {[%clk 0:02:57]} 4. Bg2 {[%clk 0:02:59]}  d5 {[%clk 0:02:56]} 5. Qa4 {[%clk 0:02:58]}  dxc4 {[%clk 0:02:54]} 6. Qxc4 {[%clk 0:02:59]}  Bg7 {[%clk 0:02:52]} 7. Nf3 {[%clk 0:02:58]}  O-O {[%clk 0:02:51]} 8. O-O {[%clk 0:02:58]}  Be6 {[%clk 0:02:50]} 9. Qc2 {[%clk 0:02:57]}  Bf5 {[%clk 0:02:49]} 10. Qb3 {[%clk 0:02:57]}  Qb6 {[%clk 0:02:48]} 11. Nc3 {[%clk 0:02:56]}  Qxb3 {[%clk 0:02:32]} 12. axb3 {[%clk 0:02:57]}  Na6 {[%clk 0:02:30]} 13. Ne5 {[%clk 0:02:52]}  Nd7 {[%clk 0:02:27]} 14. Nxc6 {[%clk 0:02:48]}  bxc6 {[%clk 0:02:21]} 15. Rxa6 {[%clk 0:02:47]}  Bxd4 {[%clk 0:02:19]} 16. Bxc6 {[%clk 0:02:45]}  Rab8 {[%clk 0:02:14]} 17. Nd5 {[%clk 0:02:43]}  Bc5 {[%clk 0:02:03]} 18. Be3 {[%clk 0:02:42]}  Bxe3 {[%clk 0:01:56]} 19. Nxe7+ {[%clk 0:02:41]}  Kg7 {[%clk 0:01:54]} 20. Nxf5+ {[%clk 0:02:41]}  gxf5 {[%clk 0:01:52]} 21. fxe3 {[%clk 0:02:41]}  Nf6 {[%clk 0:01:20]} 22. Ba4 {[%clk 0:02:34]}  Nd5 {[%clk 0:01:01]} 23. Rxf5 {[%clk 0:02:30]}  Nxe3 {[%clk 0:01:01]} 24. Rg5+ {[%clk 0:02:29]}  Kh8 {[%clk 0:01:00]} 25. Rxa7 {[%clk 0:02:28]}  Rb6 {[%clk 0:00:41]} 26. Kf2 {[%clk 0:02:17]}  Re6 {[%clk 0:00:36]} 27. Raa5 {[%clk 0:02:03]}  Rfe8 {[%clk 0:00:30]} 28. Bxe8 {[%clk 0:02:00]} 1-0


[Site "https://www.chess.com"]

[Event "Titled Tuesday Blitz February 21 Early 2023"]
[White "Schut, Han"]
[Black "Avazkhonov, Alikhon"]
[WhiteFideId "1005561"]
[BlackFideId "14208504"]
[WhiteElo "2101"]
[BlackElo "1538"]
[Result "0-1"]
[Round "09"]
[TimeControl "180+2"]
[Date "2023.02.21"]
[WhiteClock "0:00:03"]
[BlackClock "0:00:12"]

1. e4 {[%clk 0:02:54]}  c5 {[%clk 0:02:59]} 2. Nf3 {[%clk 0:02:51]}  d6 {[%clk 0:02:53]} 3. d4 {[%clk 0:02:51]}  cxd4 {[%clk 0:02:54]} 4. Nxd4 {[%clk 0:02:51]}  Nf6 {[%clk 0:02:54]} 5. f3 {[%clk 0:02:52]}  e5 {[%clk 0:02:54]} 6. Bb5+ {[%clk 0:02:52]}  Nbd7 {[%clk 0:02:52]} 7. Nf5 {[%clk 0:02:51]}  d5 {[%clk 0:02:53]} 8. exd5 {[%clk 0:02:50]}  a6 {[%clk 0:02:52]} 9. Ba4 {[%clk 0:02:50]}  b5 {[%clk 0:02:49]} 10. Bb3 {[%clk 0:02:50]}  Nc5 {[%clk 0:02:50]} 11. Ne3 {[%clk 0:02:50]}  Bb7 {[%clk 0:02:32]} 12. Nc3 {[%clk 0:02:50]}  b4 {[%clk 0:02:25]} 13. Na4 {[%clk 0:02:04]}  Be7 {[%clk 0:01:24]} 14. O-O {[%clk 0:01:57]}  O-O {[%clk 0:01:24]} 15. c4 {[%clk 0:01:48]}  bxc3 {[%clk 0:01:07]} 16. Nxc3 {[%clk 0:01:48]}  Nxb3 {[%clk 0:00:56]} 17. Qxb3 {[%clk 0:01:49]}  Rb8 {[%clk 0:00:56]} 18. Qc4 {[%clk 0:01:29]}  Rc8 {[%clk 0:00:43]} 19. Qd3 {[%clk 0:01:25]}  Qb6 {[%clk 0:00:42]} 20. Kh1 {[%clk 0:01:02]}  Rfd8 {[%clk 0:00:40]} 21. Rd1 {[%clk 0:00:57]}  Bb4 {[%clk 0:00:32]} 22. Bd2 {[%clk 0:00:24]}  Qd4 {[%clk 0:00:22]} 23. Qe2 {[%clk 0:00:13]}  Qh4 {[%clk 0:00:19]} 24. Be1 {[%clk 0:00:12]}  Qh5 {[%clk 0:00:18]} 25. Bg3 {[%clk 0:00:07]}  Bxc3 {[%clk 0:00:15]} 26. bxc3 {[%clk 0:00:08]}  Rxc3 {[%clk 0:00:16]} 27. d6 {[%clk 0:00:04]}  e4 {[%clk 0:00:11]} 28. Rd2 {[%clk 0:00:02]}  exf3 {[%clk 0:00:11]} 29. gxf3 {[%clk 0:00:03]}  Bxf3+ {[%clk 0:00:12]} 0-1


[Site "https://www.chess.com"]